[Event "January 9 Early 2024"]
[Site "https://www.chess.com"]
[Date "2024.01.11"]
[Round "1"]
[White "Von Buelow, Georg"]
[Black "Pinero Rodriguez, Carlos Jose"]
[Result "0-1"]
[Board "1"]
[TimeControl "180+1"]
[WhiteFideId "4620658"]
[BlackFideId "3901726"]
[WhiteElo "2113"]
[BlackElo "2557"]
[WhiteTeam "GER"]
[BlackTeam "VEN"]
[WhiteClock "0:02:30"]
[BlackClock "0:02:48"]

1. e4 {[%clk 0:03:00]}  c5 {[%clk 0:02:59]} 2. Nf3 {[%clk 0:03:00]}  e6 {[%clk 0:02:58]} 3. d4 {[%clk 0:02:59]}  cxd4 {[%clk 0:02:58]} 4. Nxd4 {[%clk 0:03:00]}  a6 {[%clk 0:02:59]} 5. Bd3 {[%clk 0:03:00]}  Qc7 {[%clk 0:03:00]} 6. O-O {[%clk 0:02:59]}  Nf6 {[%clk 0:03:00]} 7. Qe2 {[%clk 0:02:59]}  h5 {[%clk 0:03:00]} 8. h3 {[%clk 0:02:57]}  d6 {[%clk 0:02:59]} 9. c4 {[%clk 0:02:57]}  Be7 {[%clk 0:02:59]} 10. Nc3 {[%clk 0:02:56]}  Nbd7 {[%clk 0:02:58]} 11. Bd2 {[%clk 0:02:40]}  b6 {[%clk 0:02:57]} 12. Rac1 {[%clk 0:02:40]}  Bb7 {[%clk 0:02:57]} 13. b4 {[%clk 0:02:40]}  Rc8 {[%clk 0:02:55]} 14. a3 {[%clk 0:02:40]}  Ne5 {[%clk 0:02:48]} 15. f4 {[%clk 0:02:30]}  Nxd3 {[%clk 0:02:47]} 16. Qxd3 {[%clk 0:02:30]}  Qxc4 {[%clk 0:02:48]} 0-1

[Event "January 9 Early 2024"]
[Site "https://www.chess.com"]
[Date "2024.01.11"]
[Round "1"]
[White "Travadon, Loic"]
[Black "Coca Cubillos, Jesus Alberto"]
[Result "0-1"]
[Board "2"]
[TimeControl "180+1"]
[WhiteFideId "26092131"]
[BlackFideId "4462912"]
[WhiteElo "2224"]
[BlackElo "2599"]
[WhiteTeam "FRA"]
[BlackTeam "COL"]
[WhiteClock "0:01:58"]
[BlackClock "0:02:29"]

1. e4 {[%clk 0:03:00]}  g6 {[%clk 0:02:59]} 2. d4 {[%clk 0:02:59]}  Bg7 {[%clk 0:02:59]} 3. Nc3 {[%clk 0:03:00]}  d6 {[%clk 0:03:00]} 4. Be3 {[%clk 0:02:56]}  Nc6 {[%clk 0:02:58]} 5. Bb5 {[%clk 0:02:55]}  Bd7 {[%clk 0:02:58]} 6. Bxc6 {[%clk 0:02:51]}  bxc6 {[%clk 0:02:57]} 7. f4 {[%clk 0:02:51]}  f6 {[%clk 0:02:57]} 8. Nf3 {[%clk 0:02:51]}  Nh6 {[%clk 0:02:57]} 9. O-O {[%clk 0:02:48]}  O-O {[%clk 0:02:57]} 10. f5 {[%clk 0:02:44]}  gxf5 {[%clk 0:02:52]} 11. Bxh6 {[%clk 0:02:42]}  Bxh6 {[%clk 0:02:53]} 12. Qe1 {[%clk 0:02:41]}  Kh8 {[%clk 0:02:54]} 13. Qh4 {[%clk 0:02:40]}  Be3+ {[%clk 0:02:52]} 14. Kh1 {[%clk 0:02:39]}  f4 {[%clk 0:02:50]} 15. Qh6 {[%clk 0:02:31]}  Rg8 {[%clk 0:02:47]} 16. Rad1 {[%clk 0:02:29]}  Rg6 {[%clk 0:02:45]} 17. Qh5 {[%clk 0:02:27]}  Qg8 {[%clk 0:02:44]} 18. Nh4 {[%clk 0:02:19]}  Rg5 {[%clk 0:02:36]} 19. Qh6 {[%clk 0:02:19]}  Bg4 {[%clk 0:02:32]} 20. h3 {[%clk 0:01:58]}  Rh5 {[%clk 0:02:29]} 0-1

[Event "January 9 Early 2024"]
[Site "https://www.chess.com"]
[Date "2024.01.11"]
[Round "1"]
[White "Gokerkan, Cem Kaan"]
[Black "Gutierrez Olivares, Daniel"]
[Result "1-0"]
[Board "7"]
[TimeControl "180+1"]
[WhiteFideId "6336760"]
[BlackFideId "2264005"]
[WhiteElo "2848"]
[BlackElo "2460"]
[WhiteTeam "TUR"]
[BlackTeam "ESP"]
[WhiteClock "0:02:22"]
[BlackClock "0:01:15"]

1. e4 {[%clk 0:03:00]}  e6 {[%clk 0:02:47]} 2. d4 {[%clk 0:03:00]}  d5 {[%clk 0:02:46]} 3. Nd2 {[%clk 0:03:00]}  Be7 {[%clk 0:02:39]} 4. Ngf3 {[%clk 0:03:00]}  b6 {[%clk 0:02:35]} 5. exd5 {[%clk 0:02:58]}  exd5 {[%clk 0:02:30]} 6. Bd3 {[%clk 0:02:51]}  Nf6 {[%clk 0:02:31]} 7. O-O {[%clk 0:02:51]}  O-O {[%clk 0:02:31]} 8. Re1 {[%clk 0:02:51]}  Bb7 {[%clk 0:02:32]} 9. Nf1 {[%clk 0:02:49]}  Na6 {[%clk 0:02:31]} 10. c3 {[%clk 0:02:48]}  c5 {[%clk 0:02:31]} 11. Ng3 {[%clk 0:02:48]}  g6 {[%clk 0:02:27]} 12. Qe2 {[%clk 0:02:26]}  Re8 {[%clk 0:01:15]} 13. Bxa6 {[%clk 0:02:26]}  Bd6 {[%clk 0:01:15]} 14. Be3 {[%clk 0:02:22]} 1-0

[Event "January 9 Early 2024"]
[Site "https://www.chess.com"]
[Date "2024.01.11"]
[Round "1"]
[White "Kanyamarala, Trisha"]
[Black "Chigaev, Maksim"]
[Result "0-1"]
[Board "10"]
[TimeControl "180+1"]
[WhiteFideId "45004722"]
[BlackFideId "4108116"]
[WhiteElo "2505"]
[BlackElo "2954"]
[WhiteTeam "IRL"]
[BlackTeam "ESP"]
[WhiteClock "0:01:34"]
[BlackClock "0:01:56"]

1. c4 {[%clk 0:03:00]}  g6 {[%clk 0:02:59]} 2. Nc3 {[%clk 0:03:00]}  Bg7 {[%clk 0:02:59]} 3. g3 {[%clk 0:03:00]}  d6 {[%clk 0:02:55]} 4. Bg2 {[%clk 0:03:00]}  f5 {[%clk 0:02:56]} 5. Nf3 {[%clk 0:02:57]}  Nf6 {[%clk 0:02:56]} 6. d4 {[%clk 0:02:54]}  O-O {[%clk 0:02:57]} 7. d5 {[%clk 0:02:54]}  e5 {[%clk 0:02:50]} 8. dxe6 {[%clk 0:02:49]}  Bxe6 {[%clk 0:02:48]} 9. Ng5 {[%clk 0:02:46]}  Bxc4 {[%clk 0:02:35]} 10. Bxb7 {[%clk 0:02:43]}  Nbd7 {[%clk 0:02:35]} 11. Bxa8 {[%clk 0:02:40]}  Qxa8 {[%clk 0:02:34]} 12. O-O {[%clk 0:02:40]}  Ne5 {[%clk 0:02:25]} 13. Be3 {[%clk 0:02:21]}  h6 {[%clk 0:02:12]} 14. Nf3 {[%clk 0:02:20]}  Bxe2 {[%clk 0:02:04]} 15. Qxe2 {[%clk 0:01:52]}  Nxf3+ {[%clk 0:02:01]} 16. Qxf3 {[%clk 0:01:44]}  Qxf3 {[%clk 0:02:01]} 17. Rfe1 {[%clk 0:01:44]}  g5 {[%clk 0:02:00]} 18. Bd4 {[%clk 0:01:43]}  Ng4 {[%clk 0:01:57]} 19. Be3 {[%clk 0:01:36]}  f4 {[%clk 0:01:56]} 20. gxf4 {[%clk 0:01:34]}  gxf4 {[%clk 0:01:57]} 21. Bxa7 {[%clk 0:01:34]}  c5 {[%clk 0:01:56]} 0-1

[Event "January 9 Early 2024"]
[Site "https://www.chess.com"]
[Date "2024.01.11"]
[Round "1"]
[White "Jakubowski, Krzysztof"]
[Black "Zgadzaj, Rafal"]
[Result "1-0"]
[Board "14"]
[TimeControl "180+1"]
[WhiteFideId "1112848"]
[BlackFideId "1113712"]
[WhiteElo "2666"]
[BlackElo "2341"]
[WhiteTeam "POL"]
[BlackTeam "POL"]
[WhiteClock "0:01:52"]
[BlackClock "0:01:21"]

1. e4 {[%clk 0:03:00]}  d6 {[%clk 0:02:58]} 2. d4 {[%clk 0:03:00]}  Nf6 {[%clk 0:02:58]} 3. Nc3 {[%clk 0:02:59]}  g6 {[%clk 0:02:59]} 4. f4 {[%clk 0:02:56]}  c6 {[%clk 0:02:55]} 5. Nf3 {[%clk 0:02:53]}  Bg4 {[%clk 0:02:55]} 6. Be3 {[%clk 0:02:51]}  Bg7 {[%clk 0:02:55]} 7. h3 {[%clk 0:02:42]}  Bxf3 {[%clk 0:02:55]} 8. Qxf3 {[%clk 0:02:43]}  e6 {[%clk 0:02:54]} 9. g4 {[%clk 0:02:37]}  d5 {[%clk 0:02:49]} 10. e5 {[%clk 0:02:36]}  Nfd7 {[%clk 0:02:48]} 11. O-O-O {[%clk 0:02:34]}  h5 {[%clk 0:02:37]} 12. Be2 {[%clk 0:02:19]}  Na6 {[%clk 0:02:29]} 13. f5 {[%clk 0:02:18]}  hxg4 {[%clk 0:02:13]} 14. hxg4 {[%clk 0:02:18]}  Rxh1 {[%clk 0:02:13]} 15. Rxh1 {[%clk 0:02:18]}  gxf5 {[%clk 0:02:13]} 16. gxf5 {[%clk 0:02:18]}  exf5 {[%clk 0:02:02]} 17. Rh7 {[%clk 0:02:04]}  Kf8 {[%clk 0:01:28]} 18. Qg3 {[%clk 0:01:57]}  Bxe5 {[%clk 0:01:21]} 19. dxe5 {[%clk 0:01:54]}  Qe7 {[%clk 0:01:21]} 20. Rh8# {[%clk 0:01:52]} 1-0

[Event "January 9 Early 2024"]
[Site "https://www.chess.com"]
[Date "2024.01.11"]
[Round "1"]
[White "Keymer, Vincent"]
[Black "Flynn, Jacob"]
[Result "1-0"]
[Board "15"]
[TimeControl "180+1"]
[WhiteFideId "12940690"]
[BlackFideId "2509393"]
[WhiteElo "3031"]
[BlackElo "2522"]
[WhiteTeam "GER"]
[BlackTeam "IRL"]
[WhiteClock "0:02:12"]
[BlackClock "0:01:24"]

1. a3 {[%clk 0:03:00]}  d5 {[%clk 0:02:56]} 2. Nf3 {[%clk 0:03:00]}  Nf6 {[%clk 0:02:56]} 3. e3 {[%clk 0:03:01]}  c5 {[%clk 0:02:53]} 4. b4 {[%clk 0:03:00]}  e6 {[%clk 0:02:50]} 5. bxc5 {[%clk 0:03:00]}  Bxc5 {[%clk 0:02:50]} 6. d4 {[%clk 0:02:59]}  Bd6 {[%clk 0:02:50]} 7. c4 {[%clk 0:02:59]}  O-O {[%clk 0:02:45]} 8. Nbd2 {[%clk 0:02:57]}  b6 {[%clk 0:02:45]} 9. Bb2 {[%clk 0:02:56]}  Bb7 {[%clk 0:02:45]} 10. Bd3 {[%clk 0:02:56]}  Nbd7 {[%clk 0:02:46]} 11. O-O {[%clk 0:02:56]}  Rc8 {[%clk 0:02:45]} 12. Rc1 {[%clk 0:02:53]}  Qe7 {[%clk 0:02:44]} 13. a4 {[%clk 0:02:46]}  Ba3 {[%clk 0:02:29]} 14. Qb3 {[%clk 0:02:46]}  Bxb2 {[%clk 0:02:29]} 15. Qxb2 {[%clk 0:02:47]}  Rc7 {[%clk 0:02:21]} 16. cxd5 {[%clk 0:02:45]}  Nxd5 {[%clk 0:02:18]} 17. Rxc7 {[%clk 0:02:44]}  Nxc7 {[%clk 0:02:18]} 18. Bxh7+ {[%clk 0:02:40]}  Kxh7 {[%clk 0:02:19]} 19. Qc2+ {[%clk 0:02:40]}  Kg8 {[%clk 0:02:20]} 20. Qxc7 {[%clk 0:02:40]}  Ba6 {[%clk 0:02:17]} 21. Rb1 {[%clk 0:02:37]}  Rc8 {[%clk 0:02:13]} 22. Qxa7 {[%clk 0:02:36]}  Bd3 {[%clk 0:02:12]} 23. Re1 {[%clk 0:02:35]}  Qd6 {[%clk 0:02:09]} 24. a5 {[%clk 0:02:21]}  bxa5 {[%clk 0:02:03]} 25. Qxa5 {[%clk 0:02:20]}  Bg6 {[%clk 0:01:42]} 26. h3 {[%clk 0:02:19]}  Rb8 {[%clk 0:01:40]} 27. Rc1 {[%clk 0:02:18]}  Nf6 {[%clk 0:01:35]} 28. Qc7 {[%clk 0:02:16]}  Qxc7 {[%clk 0:01:32]} 29. Rxc7 {[%clk 0:02:17]}  Rb2 {[%clk 0:01:33]} 30. g4 {[%clk 0:02:12]}  Be4 {[%clk 0:01:24]} 31. Rc8+ {[%clk 0:02:12]} 1-0

[Event "January 9 Early 2024"]
[Site "https://www.chess.com"]
[Date "2024.01.11"]
[Round "1"]
[White "Krstulovic, Alex"]
[Black "Eilenberg, Jonas"]
[Result "1-0"]
[Board "19"]
[TimeControl "180+1"]
[WhiteFideId "760056"]
[BlackFideId "16204271"]
[WhiteElo "2683"]
[BlackElo "2355"]
[WhiteTeam "HUN"]
[BlackTeam "GER"]
[WhiteClock "0:01:58"]
[BlackClock "0:01:28"]

1. Nc3 {[%clk 0:03:00]}  d5 {[%clk 0:02:58]} 2. e3 {[%clk 0:02:59]}  Nf6 {[%clk 0:02:58]} 3. h3 {[%clk 0:02:58]}  c6 {[%clk 0:02:59]} 4. d3 {[%clk 0:02:56]}  Bf5 {[%clk 0:02:57]} 5. g4 {[%clk 0:02:42]}  Bg6 {[%clk 0:02:57]} 6. Bg2 {[%clk 0:02:41]}  e6 {[%clk 0:02:57]} 7. Bd2 {[%clk 0:02:41]}  Nbd7 {[%clk 0:02:57]} 8. f4 {[%clk 0:02:42]}  h5 {[%clk 0:02:53]} 9. g5 {[%clk 0:02:42]}  Ng8 {[%clk 0:02:53]} 10. Nf3 {[%clk 0:02:42]}  Ne7 {[%clk 0:02:53]} 11. e4 {[%clk 0:02:42]}  dxe4 {[%clk 0:02:52]} 12. dxe4 {[%clk 0:02:42]}  Qb6 {[%clk 0:02:35]} 13. Qe2 {[%clk 0:02:38]}  h4 {[%clk 0:02:26]} 14. O-O-O {[%clk 0:02:38]}  O-O-O {[%clk 0:02:21]} 15. Na4 {[%clk 0:02:38]}  Qc7 {[%clk 0:02:11]} 16. Qf2 {[%clk 0:02:20]}  Kb8 {[%clk 0:02:08]} 17. Nxh4 {[%clk 0:02:20]}  Bh5 {[%clk 0:02:08]} 18. Bf3 {[%clk 0:02:19]}  f6 {[%clk 0:02:05]} 19. f5 {[%clk 0:02:13]}  Ne5 {[%clk 0:01:56]} 20. Bxh5 {[%clk 0:02:12]}  Rxh5 {[%clk 0:01:56]} 21. fxe6 {[%clk 0:02:12]}  fxg5 {[%clk 0:01:42]} 22. Nf5 {[%clk 0:02:12]}  Nxf5 {[%clk 0:01:41]} 23. exf5 {[%clk 0:02:13]}  Bd6 {[%clk 0:01:38]} 24. Be3 {[%clk 0:02:07]}  Rh4 {[%clk 0:01:37]} 25. Bxa7+ {[%clk 0:02:06]}  Ka8 {[%clk 0:01:34]} 26. Nb6+ {[%clk 0:02:00]}  Kxa7 {[%clk 0:01:34]} 27. Nd5+ {[%clk 0:02:00]}  Kb8 {[%clk 0:01:34]} 28. Nxc7 {[%clk 0:02:01]}  Kxc7 {[%clk 0:01:35]} 29. Rhe1 {[%clk 0:01:58]}  Ra4 {[%clk 0:01:28]} 30. Rxd6 {[%clk 0:01:58]} 1-0

[Event "January 9 Early 2024"]
[Site "https://www.chess.com"]
[Date "2024.01.11"]
[Round "1"]
[White "Demin, Vladimir"]
[Black "Md, Sariatullah"]
[Result "1-0"]
[Board "21"]
[TimeControl "180+1"]
[WhiteFideId "4167457"]
[BlackFideId "10207333"]
[WhiteElo "2590"]
[BlackElo "2210"]
[WhiteTeam "RUS"]
[BlackTeam "BAN"]
[WhiteClock "0:02:04"]
[BlackClock "0:01:21"]

1. d4 {[%clk 0:03:00]}  Nf6 {[%clk 0:02:59]} 2. Nc3 {[%clk 0:03:01]}  e6 {[%clk 0:02:59]} 3. e4 {[%clk 0:02:59]}  Bb4 {[%clk 0:02:56]} 4. e5 {[%clk 0:02:58]}  Nd5 {[%clk 0:02:53]} 5. Qg4 {[%clk 0:02:59]}  g6 {[%clk 0:02:27]} 6. Bg5 {[%clk 0:02:55]}  Be7 {[%clk 0:02:27]} 7. h4 {[%clk 0:02:48]}  h6 {[%clk 0:02:22]} 8. Bxe7 {[%clk 0:02:46]}  Nxe7 {[%clk 0:02:21]} 9. Ne4 {[%clk 0:02:46]}  Ng8 {[%clk 0:02:15]} 10. h5 {[%clk 0:02:41]}  g5 {[%clk 0:02:09]} 11. f4 {[%clk 0:02:36]}  f5 {[%clk 0:02:06]} 12. exf6 {[%clk 0:02:35]}  Nxf6 {[%clk 0:02:06]} 13. Nxf6+ {[%clk 0:02:35]}  Qxf6 {[%clk 0:02:06]} 14. fxg5 {[%clk 0:02:35]}  Qxg5 {[%clk 0:02:02]} 15. Qxg5 {[%clk 0:02:34]}  hxg5 {[%clk 0:02:03]} 16. g4 {[%clk 0:02:34]}  Nc6 {[%clk 0:02:02]} 17. Nf3 {[%clk 0:02:33]}  d6 {[%clk 0:01:59]} 18. Be2 {[%clk 0:02:21]}  e5 {[%clk 0:01:59]} 19. dxe5 {[%clk 0:02:17]}  Bxg4 {[%clk 0:01:59]} 20. exd6 {[%clk 0:02:17]}  O-O-O {[%clk 0:01:59]} 21. O-O-O {[%clk 0:02:15]}  cxd6 {[%clk 0:01:50]} 22. Nd4 {[%clk 0:02:12]}  Bxe2 {[%clk 0:01:44]} 23. Nxe2 {[%clk 0:02:13]}  Rh6 {[%clk 0:01:38]} 24. Rdg1 {[%clk 0:02:12]}  Rg8 {[%clk 0:01:33]} 25. Ng3 {[%clk 0:02:06]}  Ne5 {[%clk 0:01:23]} 26. Nf5 {[%clk 0:02:04]}  Rf6 {[%clk 0:01:21]} 27. Ne7+ {[%clk 0:02:04]} 1-0

[Event "January 9 Early 2024"]
[Site "https://www.chess.com"]
[Date "2024.01.11"]
[Round "1"]
[White "Smirnov, Mark"]
[Black "Vargas, Mauricio"]
[Result "1-0"]
[Board "24"]
[TimeControl "180+1"]
[WhiteFideId "13764594"]
[BlackFideId "4404572"]
[WhiteElo "2539"]
[BlackElo "1842"]
[WhiteTeam "KAZ"]
[BlackTeam "COL"]
[WhiteClock "0:01:27"]
[BlackClock "0:01:43"]

1. e4 {[%clk 0:02:59]}  c5 {[%clk 0:02:56]} 2. Nf3 {[%clk 0:02:59]}  Nc6 {[%clk 0:02:55]} 3. Bb5 {[%clk 0:02:58]}  Nd4 {[%clk 0:02:50]} 4. Nxd4 {[%clk 0:02:50]}  cxd4 {[%clk 0:02:50]} 5. O-O {[%clk 0:02:49]}  e5 {[%clk 0:02:48]} 6. d3 {[%clk 0:02:36]}  h6 {[%clk 0:02:43]} 7. f4 {[%clk 0:02:34]}  a6 {[%clk 0:02:38]} 8. Bc4 {[%clk 0:02:28]}  b5 {[%clk 0:02:34]} 9. Bd5 {[%clk 0:02:27]}  Rb8 {[%clk 0:02:28]} 10. Qh5 {[%clk 0:02:11]}  Qe7 {[%clk 0:02:17]} 11. Bxf7+ {[%clk 0:02:05]}  Kd8 {[%clk 0:02:16]} 12. fxe5 {[%clk 0:02:02]}  Bb7 {[%clk 0:02:05]} 13. Bf4 {[%clk 0:01:48]}  g5 {[%clk 0:02:00]} 14. Bg3 {[%clk 0:01:46]}  Bg7 {[%clk 0:01:55]} 15. e6 {[%clk 0:01:42]}  d6 {[%clk 0:01:47]} 16. Qg6 {[%clk 0:01:35]}  Be5 {[%clk 0:01:43]} 17. Bxe5 {[%clk 0:01:28]}  dxe5 {[%clk 0:01:43]} 18. Bxg8 {[%clk 0:01:27]} 1-0

[Event "January 9 Early 2024"]
[Site "https://www.chess.com"]
[Date "2024.01.11"]
[Round "1"]
[White "Onufrienko, Vladislav"]
[Black "Soraas, Torben"]
[Result "1-0"]
[Board "26"]
[TimeControl "180+1"]
[WhiteFideId "13804332"]
[BlackFideId "1503529"]
[WhiteElo "2608"]
[BlackElo "2241"]
[WhiteTeam "KGZ"]
[BlackTeam "NOR"]
[WhiteClock "0:02:08"]
[BlackClock "0:00:45"]

1. e4 {[%clk 0:02:56]}  e6 {[%clk 0:02:59]} 2. d4 {[%clk 0:02:54]}  d5 {[%clk 0:03:00]} 3. Nc3 {[%clk 0:02:54]}  dxe4 {[%clk 0:03:01]} 4. Nxe4 {[%clk 0:02:54]}  Nd7 {[%clk 0:03:02]} 5. Bd3 {[%clk 0:02:54]}  Ngf6 {[%clk 0:03:02]} 6. Qe2 {[%clk 0:02:51]}  c5 {[%clk 0:03:00]} 7. Nf3 {[%clk 0:02:49]}  Nxe4 {[%clk 0:02:57]} 8. Bxe4 {[%clk 0:02:49]}  Nf6 {[%clk 0:02:56]} 9. O-O {[%clk 0:02:38]}  Nxe4 {[%clk 0:02:45]} 10. Qxe4 {[%clk 0:02:39]}  Be7 {[%clk 0:02:41]} 11. dxc5 {[%clk 0:02:37]}  Bxc5 {[%clk 0:02:34]} 12. Bg5 {[%clk 0:02:37]}  Qb6 {[%clk 0:02:28]} 13. c3 {[%clk 0:02:36]}  O-O {[%clk 0:02:17]} 14. b4 {[%clk 0:02:35]}  Bd6 {[%clk 0:02:15]} 15. Rad1 {[%clk 0:02:32]}  f6 {[%clk 0:01:45]} 16. Be3 {[%clk 0:02:31]}  Qc7 {[%clk 0:01:45]} 17. Nd4 {[%clk 0:02:31]}  Bxh2+ {[%clk 0:01:37]} 18. Kh1 {[%clk 0:02:31]}  Qe5 {[%clk 0:01:35]} 19. Qh4 {[%clk 0:02:25]}  Qc7 {[%clk 0:00:52]} 20. Qxh2 {[%clk 0:02:25]}  Qxc3 {[%clk 0:00:53]} 21. Nb5 {[%clk 0:02:07]}  Qxb4 {[%clk 0:00:46]} 22. Nc7 {[%clk 0:02:07]}  Rb8 {[%clk 0:00:45]} 23. Bxa7 {[%clk 0:02:08]} 1-0

[Event "January 9 Early 2024"]
[Site "https://www.chess.com"]
[Date "2024.01.11"]
[Round "1"]
[White "Sava, Ana-Maria"]
[Black "Rogov, Matfey"]
[Result "0-1"]
[Board "30"]
[TimeControl "180+1"]
[WhiteFideId "1213504"]
[BlackFideId "44191308"]
[WhiteElo "1821"]
[BlackElo "2538"]
[WhiteTeam "ROU"]
[BlackTeam "RUS"]
[WhiteClock "0:01:40"]
[BlackClock "0:01:31"]

1. e4 {[%clk 0:02:58]}  e5 {[%clk 0:02:59]} 2. Nf3 {[%clk 0:02:57]}  Nc6 {[%clk 0:02:59]} 3. Bb5 {[%clk 0:02:55]}  Bb4 {[%clk 0:02:59]} 4. a3 {[%clk 0:02:54]}  Ba5 {[%clk 0:02:59]} 5. Bxc6 {[%clk 0:02:53]}  dxc6 {[%clk 0:02:59]} 6. b4 {[%clk 0:02:53]}  Bb6 {[%clk 0:02:59]} 7. Bb2 {[%clk 0:02:53]}  f6 {[%clk 0:02:54]} 8. c4 {[%clk 0:02:44]}  c5 {[%clk 0:02:50]} 9. b5 {[%clk 0:02:41]}  Ne7 {[%clk 0:02:49]} 10. Bc3 {[%clk 0:02:40]}  O-O {[%clk 0:02:47]} 11. a4 {[%clk 0:02:40]}  c6 {[%clk 0:02:39]} 12. a5 {[%clk 0:02:39]}  Bc7 {[%clk 0:02:38]} 13. O-O {[%clk 0:02:37]}  Bg4 {[%clk 0:02:29]} 14. d3 {[%clk 0:02:32]}  cxb5 {[%clk 0:02:26]} 15. cxb5 {[%clk 0:02:31]}  b6 {[%clk 0:02:24]} 16. Qb3+ {[%clk 0:02:25]}  Kh8 {[%clk 0:02:24]} 17. Qd1 {[%clk 0:02:15]}  Qd7 {[%clk 0:02:13]} 18. h3 {[%clk 0:02:14]}  Bh5 {[%clk 0:02:06]} 19. Nbd2 {[%clk 0:02:10]}  Qxd3 {[%clk 0:02:04]} 20. Rc1 {[%clk 0:02:09]}  Qxb5 {[%clk 0:02:02]} 21. axb6 {[%clk 0:02:09]}  axb6 {[%clk 0:02:03]} 22. Qc2 {[%clk 0:02:06]}  Qa4 {[%clk 0:01:58]} 23. Qb2 {[%clk 0:02:03]}  Bxf3 {[%clk 0:01:53]} 24. gxf3 {[%clk 0:01:59]}  Qd7 {[%clk 0:01:42]} 25. Kh2 {[%clk 0:01:57]}  Ng6 {[%clk 0:01:41]} 26. Rg1 {[%clk 0:01:56]}  f5 {[%clk 0:01:38]} 27. exf5 {[%clk 0:01:50]}  e4+ {[%clk 0:01:32]} 28. Kh1 {[%clk 0:01:48]}  Qxf5 {[%clk 0:01:31]} 29. Bxg7+ {[%clk 0:01:40]}  Kg8 {[%clk 0:01:31]} 0-1

[Event "January 9 Early 2024"]
[Site "https://www.chess.com"]
[Date "2024.01.11"]
[Round "1"]
[White "Skatchkov, Valery"]
[Black "Abrosimov, Vladimir"]
[Result "1-0"]
[Board "31"]
[TimeControl "180+1"]
[WhiteFideId "24195812"]
[BlackFideId "4166892"]
[WhiteElo "2588"]
[BlackElo "2205"]
[WhiteTeam "RUS"]
[BlackTeam "RUS"]
[WhiteClock "0:01:31"]
[BlackClock "0:01:17"]

1. d4 {[%clk 0:03:00]}  b5 {[%clk 0:02:56]} 2. e4 {[%clk 0:02:57]}  a6 {[%clk 0:02:56]} 3. Bd3 {[%clk 0:02:57]}  Bb7 {[%clk 0:02:57]} 4. Ne2 {[%clk 0:02:58]}  e6 {[%clk 0:02:56]} 5. O-O {[%clk 0:02:57]}  Nf6 {[%clk 0:02:55]} 6. Nd2 {[%clk 0:02:54]}  c5 {[%clk 0:02:55]} 7. c3 {[%clk 0:02:54]}  d6 {[%clk 0:02:52]} 8. a4 {[%clk 0:02:44]}  c4 {[%clk 0:02:51]} 9. Bc2 {[%clk 0:02:43]}  Nbd7 {[%clk 0:02:49]} 10. Ng3 {[%clk 0:02:35]}  Be7 {[%clk 0:02:48]} 11. f4 {[%clk 0:02:35]}  Qc7 {[%clk 0:02:44]} 12. Nf3 {[%clk 0:02:34]}  Nb6 {[%clk 0:02:40]} 13. a5 {[%clk 0:02:11]}  Nc8 {[%clk 0:02:35]} 14. e5 {[%clk 0:02:08]}  Nd5 {[%clk 0:02:34]} 15. f5 {[%clk 0:02:08]}  Na7 {[%clk 0:02:31]} 16. fxe6 {[%clk 0:02:02]}  fxe6 {[%clk 0:02:30]} 17. Ng5 {[%clk 0:02:01]}  Bxg5 {[%clk 0:02:18]} 18. Bxg5 {[%clk 0:02:02]}  g6 {[%clk 0:02:03]} 19. Qg4 {[%clk 0:01:55]}  Qd7 {[%clk 0:01:56]} 20. Ne4 {[%clk 0:01:54]}  dxe5 {[%clk 0:01:51]} 21. Nc5 {[%clk 0:01:54]}  Qc6 {[%clk 0:01:47]} 22. Nxb7 {[%clk 0:01:52]}  exd4 {[%clk 0:01:39]} 23. Rae1 {[%clk 0:01:34]}  Kd7 {[%clk 0:01:27]} 24. Rf7+ {[%clk 0:01:32]}  Kc8 {[%clk 0:01:26]} 25. Rxe6 {[%clk 0:01:32]}  Qxb7 {[%clk 0:01:17]} 26. Re8# {[%clk 0:01:31]} 1-0

[Event "January 9 Early 2024"]
[Site "https://www.chess.com"]
[Date "2024.01.11"]
[Round "1"]
[White "Yurasov, Matfey"]
[Black "Olcayoz, Gizem"]
[Result "1-0"]
[Board "34"]
[TimeControl "180+1"]
[WhiteFideId "55617603"]
[BlackFideId "6301444"]
[WhiteElo "2546"]
[BlackElo "1987"]
[WhiteTeam "FID"]
[BlackTeam "TUR"]
[WhiteClock "0:01:59"]
[BlackClock "0:00:45"]

1. e4 {[%clk 0:03:00]}  e6 {[%clk 0:03:00]} 2. d3 {[%clk 0:02:57]}  c5 {[%clk 0:02:58]} 3. Nd2 {[%clk 0:02:56]}  Nc6 {[%clk 0:02:59]} 4. Ngf3 {[%clk 0:02:56]}  g6 {[%clk 0:02:59]} 5. g3 {[%clk 0:02:56]}  Bg7 {[%clk 0:03:00]} 6. Bg2 {[%clk 0:02:56]}  Nge7 {[%clk 0:03:00]} 7. O-O {[%clk 0:02:56]}  O-O {[%clk 0:03:00]} 8. Re1 {[%clk 0:02:56]}  e5 {[%clk 0:02:58]} 9. c3 {[%clk 0:02:55]}  d6 {[%clk 0:02:55]} 10. h3 {[%clk 0:02:54]}  h6 {[%clk 0:02:55]} 11. Nb3 {[%clk 0:02:50]}  Be6 {[%clk 0:02:55]} 12. Nbd2 {[%clk 0:02:40]}  Qd7 {[%clk 0:02:55]} 13. Kh2 {[%clk 0:02:39]}  Rae8 {[%clk 0:02:55]} 14. b3 {[%clk 0:02:39]}  f5 {[%clk 0:02:55]} 15. Bb2 {[%clk 0:02:38]}  g5 {[%clk 0:02:14]} 16. exf5 {[%clk 0:02:36]}  Bxf5 {[%clk 0:02:01]} 17. d4 {[%clk 0:02:30]}  cxd4 {[%clk 0:01:51]} 18. cxd4 {[%clk 0:02:30]}  Nxd4 {[%clk 0:01:38]} 19. Nxd4 {[%clk 0:02:29]}  exd4 {[%clk 0:01:39]} 20. Nc4 {[%clk 0:02:29]}  Nc6 {[%clk 0:01:33]} 21. Qh5 {[%clk 0:02:06]}  b5 {[%clk 0:00:58]} 22. Rxe8 {[%clk 0:02:01]}  Rxe8 {[%clk 0:00:52]} 23. Nxd6 {[%clk 0:02:00]}  Re6 {[%clk 0:00:45]} 24. Nxf5 {[%clk 0:01:59]} 1-0